fUST/lending_fUST_20260226
["ID","MTS","AMOUNT","RATE_DAILY","PERIOD"]
[406713582,1772113785550,-782.07,0.00049589,120]
[406713583,1772113785601,-770.55,0.00049589,120]
[406713584,1772113785653,-1089.64,0.00049589,120]
[406713585,1772113785702,-500.0,0.00049589,120]
[406713586,1772113785752,-500.0,0.00049589,120]
[406713587,1772113786041,-1231.92,0.00049589,120]
[406713588,1772113786101,-1490.2,0.00049589,120]
[406713589,1772113786155,-500.0,0.00049589,120]
[406713590,1772113786211,-500.0,0.00049589,120]
[406713591,1772113786265,-500.0,0.00049589,120]
[406713592,1772113786317,-1948.06,0.00049589,120]
[406713593,1772113786368,-500.0,0.00049589,120]
[406713594,1772113786418,-500.0,0.00049589,120]
[406713595,1772113786466,-500.0,0.00049589,120]
[406713596,1772113786517,-1596.86,0.00049589,120]
[406713597,1772113786567,-500.0,0.00049589,120]
[406713598,1772113786613,-500.0,0.00049589,120]
[406713599,1772113786659,-2964.87,0.00049589,120]
[406713600,1772113786707,-5257.14,0.00049589,120]
[406713601,1772113786755,-500.0,0.00049589,120]
[406713602,1772113786804,-2639.06,0.00049589,120]
[406713603,1772113786854,-2238.98,0.00049589,120]
[406713604,1772113786905,-542.85,0.00049589,120]
[406713605,1772113786958,-500.0,0.00049589,120]
[406713606,1772113787007,-500.0,0.00049589,120]
[406713607,1772113787058,-592.11,0.00049589,120]
[406713608,1772113787107,-2663.52,0.00049589,120]
[406713609,1772113787161,-677.03,0.00049589,120]
[406713610,1772113787216,-500.0,0.00049589,120]
[406713611,1772113787271,-576.55,0.00049589,120]
[406713612,1772113787325,-500.0,0.00049589,120]
[406713613,1772113787378,-500.0,0.00049589,120]
[406713614,1772113787430,-500.0,0.00049589,120]
[406713615,1772113787484,-500.0,0.00049589,120]
[406713616,1772113787551,-500.0,0.00049589,120]
[406713617,1772113787613,-500.0,0.00049589,120]
[406713618,1772113787671,-832.67,0.00049589,120]
[406713619,1772113787727,-545.88,0.00049589,120]
[406713620,1772113787782,-500.0,0.00049589,120]
[406713621,1772113787834,-500.0,0.00049589,120]
[406713622,1772113787883,-500.0,0.00049589,120]
[406713623,1772113787934,-500.0,0.00049589,120]
[406713624,1772113787986,-3451.79,0.00049589,120]
[406713625,1772113788041,-500.0,0.00049589,120]
[406713626,1772113788094,-500.0,0.00049589,120]
[406713627,1772113788149,-500.0,0.00049589,120]
[406713628,1772113788205,-500.0,0.00049589,120]
[406713629,1772113788261,-500.0,0.00049589,120]
[406713630,1772113788314,-1894.44,0.00049589,120]
[406713631,1772113788366,-500.0,0.00049589,120]
[406713632,1772113788417,-1279.57,0.00049589,120]
[406713633,1772113788469,-524.63,0.00049589,30]
[406713634,1772113788523,-500.0,0.00049589,120]
[406713635,1772113788575,-607.87,0.00049589,120]
[406713636,1772113788628,-5931.29,0.00049589,120]
[406713637,1772113788680,-500.0,0.00049589,120]
[406713638,1772113788732,-848.15,0.00049589,120]
[406713639,1772113788786,-687.15,0.00049589,120]
[406713640,1772113788838,-2755.1,0.00049589,120]
[406713641,1772113788893,-1682.03,0.00049589,120]
[406713642,1772113788943,-632.3,0.00049589,120]
[406713643,1772113788995,-3418.62,0.00049589,120]
[406713644,1772113789046,-500.0,0.00049589,120]
[406713645,1772113789096,-500.0,0.00049589,120]
[406713646,1772113789147,-560.6,0.00049589,120]
[406713647,1772113789201,-760.23,0.00049589,120]
[406713648,1772113789253,-500.0,0.00049589,120]
[406713649,1772113789306,-500.0,0.00049589,120]
[406713650,1772113789355,-500.0,0.00049589,120]
[406713651,1772113789404,-1291.79,0.00049589,120]
[406713652,1772113789454,-1250.0,0.00049589,90]
[406713653,1772113789505,-500.0,0.00049589,120]
[406713654,1772113789557,-500.0,0.00049589,120]
[406713655,1772113789608,-1570.91,0.00049589,120]
[406713656,1772113789660,-500.0,0.00049589,120]
[406713657,1772113789717,-500.0,0.00049589,120]
[406713658,1772113789772,-6463.27,0.00049589,120]
[406713659,1772113789832,-500.0,0.00049589,120]
[406713660,1772113789888,-619.2,0.00049589,120]
[406713661,1772113789943,-500.0,0.00049589,120]
[406713662,1772113789998,-572.66,0.00049589,120]
[406713663,1772113790053,-500.0,0.00049589,120]
[406713664,1772113790108,-500.0,0.00049589,120]
[406713665,1772113790163,-34396.01266778,0.00049589,30]
[406713666,1772113790219,-500.0,0.00049589,120]
[406713667,1772113790274,-1755.77,0.00049589,120]
[406713668,1772113790325,-499.66412807,0.00049589,120]
[406713669,1772113790378,-500.0,0.00049589,120]
[406713670,1772113790431,-556.77406868,0.00049589,120]
[406713671,1772113790480,-500.0,0.00049589,120]
[406713672,1772113790531,-1117.56,0.00049589,120]
[406713673,1772113790583,-500.0,0.00049589,120]
[406713674,1772113790634,-500.0,0.00049589,120]
[406713675,1772113790683,-1975.25,0.00049589,120]
[406713676,1772113790733,-290.68767763,0.00049589,120]
[406713677,1772113790785,-666.94,0.00049589,120]
[406713678,1772113790836,-500.0,0.00049589,120]
[406713679,1772113790888,-1118.69,0.00049589,120]
[406713680,1772113790937,-1240.77,0.00049589,120]
[406713681,1772113790985,-500.0,0.00049589,120]
[406713682,1772113791031,-500.0,0.00049589,120]
[406713683,1772113791077,-500.0,0.00049589,120]
[406713684,1772113791125,-500.0,0.00049589,120]
[406713685,1772113791174,-500.0,0.00049589,120]
[406713686,1772113791224,-1474.14,0.00049589,120]
[406713687,1772113791273,-563.18,0.00049589,120]
[406713688,1772113791322,-1081.68,0.00049589,120]
[406713689,1772113791368,-2345.53,0.00049589,120]
[406713690,1772113791414,-500.0,0.00049589,120]
[406713691,1772113791459,-552.18,0.00049589,120]
[406713692,1772113791700,-2494.26,0.00049589,120]
[406713693,1772113791752,-1485.42,0.00049589,120]
[406713694,1772113791804,-1386.55,0.00049589,120]
[406713695,1772113791854,-500.0,0.00049589,120]
[406713696,1772113791900,-1617.92,0.00049589,120]
[406713697,1772113791947,-8945.98,0.00049589,120]
[406713698,1772113791998,-1353.17,0.00049589,120]
[406713699,1772113792050,-500.0,0.00049589,120]
[406713700,1772113792100,-2937.56,0.00049589,120]
[406713701,1772113792153,-5695.11,0.00049589,120]
[406713702,1772113792204,-500.0,0.00049589,120]
[406713703,1772113792255,-1419.51,0.00049589,120]
[406713704,1772113792303,-500.0,0.00049589,120]
[406713705,1772113792353,-500.0,0.00049589,120]
[406713706,1772113792404,-1402.74,0.00049589,120]
[406713707,1772113792455,-500.0,0.00049589,120]
[406713708,1772113792505,-1882.82,0.00049589,120]
[406713709,1772113792557,-500.0,0.00049589,120]
[406713710,1772113792609,-574.6,0.00049589,120]
[406713711,1772113792659,-1231.22,0.00049589,120]
[406713712,1772113792706,-500.0,0.00049589,120]
[406713713,1772113792754,-951.48,0.00049589,120]
[406713714,1772113792802,-500.0,0.00049589,120]
[406713715,1772113792850,-500.0,0.00049589,120]
[406713716,1772113792902,-5056.55,0.00049589,120]
[406713717,1772113792948,-500.0,0.00049589,120]
[406713718,1772113792995,-625.0,0.00049589,120]
[406713719,1772113793041,-577.46,0.00049589,120]
[406713720,1772113793088,-533.01,0.00049589,120]
[406713721,1772113793135,-500.0,0.00049589,120]
[406713722,1772113793184,-3427.82,0.00049589,120]
[406713723,1772113793236,-615.97,0.00049589,120]
[406713724,1772113793286,-578.1,0.00049589,120]
[406713725,1772113793335,-2351.95,0.00049589,120]
[406713726,1772113793385,-754.46,0.00049589,120]
[406713727,1772113793434,-500.0,0.00049589,120]
[406713728,1772113793485,-2755.88,0.00049589,120]
[406713729,1772113793536,-500.0,0.00049589,120]
[406713730,1772113793588,-500.0,0.00049589,120]
[406713731,1772113793641,-500.0,0.00049589,120]
[406713732,1772113793694,-3392.27,0.00049589,120]
[406713733,1772113793747,-500.0,0.00049589,120]
[406713734,1772113793803,-1795.67,0.00049589,120]
[406713735,1772113793856,-500.0,0.00049589,120]
[406713736,1772113793907,-581.74596759,0.00049589,120]
[406713737,1772113793956,-3549.98,0.00049589,120]
[406713738,1772113794008,-500.0,0.00049589,120]
[406713739,1772113794065,-2724.75,0.00049589,120]
[406713740,1772113794120,-500.0,0.00049589,120]
[406713741,1772113794178,-1812.82,0.00049589,120]
[406713742,1772113794232,-1155.44,0.00049589,120]
[406713743,1772113794288,-12275.75,0.00049589,120]
[406713744,1772113794338,-1029.82,0.00049589,120]
[406713745,1772113794389,-3189.07,0.00049589,120]
[406713746,1772113794440,-2438.84,0.00049589,120]
[406713747,1772113794489,-500.0,0.00049589,120]
[406713748,1772113794541,-976.91,0.00049589,120]
[406713749,1772113794591,-508.2882797,0.00049589,120]
[406713750,1772113794643,-500.0,0.00049589,120]
[406713751,1772113794693,-2144.14,0.00049589,120]
[406713752,1772113794742,-500.0,0.00049589,120]
[406713753,1772113794791,-500.0,0.00049589,120]
[406713754,1772113794839,-500.0,0.00049589,120]
[406713755,1772113794892,-8099.17,0.00049589,120]
[406713756,1772113794943,-500.0,0.00049589,120]
[406713757,1772113794996,-500.0,0.00049589,120]
[406713758,1772113795049,-500.0,0.00049589,120]
[406713759,1772113795100,-626.8,0.00049589,120]
[406713760,1772113795152,-500.0,0.00049589,120]
[406713761,1772113795208,-500.0,0.00049589,120]
[406713762,1772113795257,-500.0,0.00049589,120]
[406713763,1772113795306,-677.44,0.00049589,120]
[406713764,1772113795353,-1728.08,0.00049589,120]
[406713765,1772113795400,-246.05236673,0.00049589,120]
[406713766,1772113795453,-1899.32,0.00049589,120]
[406713767,1772113795503,-505.08,0.00049589,120]
[406713768,1772113795557,-500.0,0.00049589,120]
[406713769,1772113795609,-976.01,0.00049589,120]
[406713770,1772113795662,-966.77,0.00049589,120]
[406713771,1772113795711,-2089.86,0.00049589,120]
[406713772,1772113795760,-500.0,0.00049589,120]
[406713773,1772113795807,-500.0,0.00049589,120]
[406713774,1772113795857,-500.0,0.00049589,120]
[406713775,1772113795907,-3707.74,0.00049589,120]
[406713776,1772113795957,-973.52,0.00049589,120]
[406713777,1772113796012,-2282.11,0.00049589,120]
[406713778,1772113796061,-799.09,0.00049589,120]
[406713779,1772113796112,-1535.63,0.00049589,120]
[406713780,1772113796161,-551.87,0.00049589,120]
[406713781,1772113796212,-500.0,0.00049589,120]
[406713782,1772113796263,-17891.39,0.00049589,120]
[406713783,1772113796311,-15784.34,0.00049589,120]
[406713784,1772113796363,-500.0,0.00049589,120]
[406713785,1772113796411,-500.0,0.00049589,120]
[406713786,1772113796459,-500.0,0.00049589,120]
[406713787,1772113796506,-520.00462816,0.00049589,120]
[406713788,1772113796555,-500.0,0.00049589,120]
[406713789,1772113796604,-7952.77,0.00049589,120]
[406713790,1772113796650,-1426.22,0.00049589,120]
[406713791,1772113796700,-500.0,0.00049589,120]
[406713792,1772113796747,-500.0,0.00049589,120]
[406713793,1772113796798,-4988.5,0.00049589,120]
[406713794,1772113796848,-730.93,0.00049589,120]
[406713795,1772113796898,-500.0,0.00049589,120]
[406713796,1772113797105,-12003.43,0.00049589,120]
[406713797,1772113797170,-3038.71,0.00049589,120]
[406713798,1772113797234,-500.0,0.00049589,120]
[406713799,1772113797297,-500.0,0.00049589,120]
[406713800,1772113797353,-500.0,0.00049589,120]
[406713801,1772113797407,-918.5,0.00049589,120]
[406713802,1772113797461,-500.0,0.00049589,120]
[406713803,1772113797514,-2349.03,0.00049589,120]
[406713804,1772113797569,-500.0,0.00049589,120]
[406713805,1772113797625,-3103.07,0.00049589,120]
[406713806,1772113797681,-344.08964082,0.00049589,120]
[406713807,1772113797737,-500.0,0.00049589,120]
[406713808,1772113797793,-643.37,0.00049589,120]
[406713809,1772113797847,-500.0,0.00049589,120]
[406713810,1772113797902,-500.0,0.00049589,120]
[406713811,1772113797953,-4440.9,0.00049589,120]
[406713812,1772113798002,-601.3,0.00049589,120]
[406713813,1772113798052,-660.63,0.00049589,120]
[406713814,1772113798100,-13114.04,0.00049589,120]
[406713815,1772113798148,-500.0,0.00049589,120]
[406713816,1772113798197,-732.56,0.00049589,120]
[406713817,1772113798248,-500.0,0.00049589,120]
[406713818,1772113798296,-2455.77,0.00049589,120]
[406713819,1772113798344,-1958.78,0.00049589,120]
[406713820,1772113798393,-333.14211644,0.00049589,120]
[406713821,1772113798442,-643.09,0.00049589,120]
[406713822,1772113798489,-362.67652408,0.00049589,120]
[406713823,1772113798539,-847.24,0.00049589,120]
[406713824,1772113798591,-1118.38,0.00049589,120]
[406713825,1772113798643,-500.0,0.00049589,120]
[406713826,1772113798695,-1959.22,0.00049589,120]
[406713827,1772113798747,-500.0,0.00049589,120]
[406713828,1772113798799,-1190.08,0.00049589,120]
[406713829,1772113798851,-500.0,0.00049589,120]
[406713830,1772113798902,-500.0,0.00049589,120]
[406713831,1772113798961,-500.0,0.00049589,120]
[406713832,1772113799014,-500.0,0.00049589,120]
[406713833,1772113799072,-500.0,0.00049589,120]
[406713834,1772113799124,-1707.0,0.00049589,120]
[406713835,1772113799176,-567.82350294,0.00049589,120]
[406713836,1772113799229,-500.0,0.00049589,120]
[406713837,1772113799281,-997.35,0.00049589,120]
[406713838,1772113799332,-1818.38,0.00049589,120]
[406713839,1772113799371,-678.4,0.00049589,120]
[406713840,1772113799408,-500.0,0.00049589,120]
[406713841,1772113799446,-500.0,0.00049589,120]
[406713842,1772113799483,-500.0,0.00049589,120]
[406713843,1772113799522,-500.0,0.00049589,120]
[406713844,1772113799558,-500.0,0.00049589,120]
[406713845,1772113799596,-1871.67,0.00049589,120]
[406713846,1772113799633,-763.79,0.00049589,120]
[406713847,1772113799671,-3096.72,0.00049589,120]
[406713848,1772113799708,-500.0,0.00049589,120]
[406713849,1772113799746,-833.24,0.00049589,120]
[406713850,1772113799784,-723.19,0.00049589,120]
[406713851,1772113799823,-3862.98,0.00049589,120]
[406713852,1772113799860,-523.86,0.00049589,120]
[406713853,1772113799900,-500.0,0.00049589,120]
[406713854,1772113799941,-500.0,0.00049589,120]
[406713855,1772113799982,-515.32773048,0.00049589,120]
[406713856,1772113800026,-500.0,0.00049589,120]
[406713857,1772113800070,-552.31,0.00049589,120]
[406713858,1772113800114,-875.55,0.00049589,120]
[406713859,1772113800158,-500.0,0.00049589,120]
[406713860,1772113800200,-500.0,0.00049589,120]
[406713861,1772113800243,-1275.04,0.00049589,120]
[406713862,1772113800286,-500.0,0.00049589,120]
[406713863,1772113800330,-500.0,0.00049589,120]
[406713864,1772113800373,-3347.45,0.00049589,120]
[406713865,1772113800414,-500.0,0.00049589,120]
[406713866,1772113800456,-205.1160385,0.00049589,120]
[406713867,1772113800497,-723.57,0.00049589,120]
[406713868,1772113800539,-500.0,0.00049589,120]
[406713869,1772113800580,-3042.22,0.00049589,120]
[406713870,1772113800621,-500.0,0.00049589,120]
[406713871,1772113800659,-500.0,0.00049589,120]
[406713872,1772113800700,-500.0,0.00049589,120]
[406713873,1772113800738,-875.52,0.00049589,120]
[406713874,1772113800783,-3148.07,0.00049589,120]
[406713875,1772113800824,-500.0,0.00049589,120]
[406713876,1772113800865,-500.0,0.00049589,120]
[406713877,1772113800904,-500.0,0.00049589,120]
[406713878,1772113800943,-500.0,0.00049589,120]
[406713879,1772113800980,-500.0,0.00049589,120]
[406713880,1772113801019,-5318.62,0.00049589,120]
[406713881,1772113801056,-500.0,0.00049589,120]
[406713882,1772113801091,-3914.63,0.00049589,120]
[406713883,1772113801127,-500.0,0.00049589,120]
[406713884,1772113801163,-506.52,0.00049589,120]
[406713885,1772113801201,-615.14,0.00049589,120]
[406713886,1772113801238,-500.0,0.00049589,120]
[406713887,1772113801275,-3625.41,0.00049589,120]
[406713888,1772113801313,-652.61,0.00049589,120]
[406713889,1772113801352,-568.8423439,0.00049589,120]
[406713890,1772113801391,-500.0,0.00049589,120]
[406713891,1772113801431,-556.02,0.00049589,120]
[406713892,1772113801471,-500.0,0.00049589,120]
[406713893,1772113801512,-500.0,0.00049589,120]
[406713894,1772113801551,-500.0,0.00049589,120]
[406713895,1772113801589,-547.88,0.00049589,120]
[406713896,1772113801629,-962.35,0.00049589,120]
[406713897,1772113801666,-500.0,0.00049589,120]
[406713898,1772113801703,-524.84,0.00049589,120]
[406713899,1772113801740,-500.0,0.00049589,120]
[406713900,1772113801943,-348.84269012,0.00049589,120]
[406713901,1772113801987,-500.0,0.00049589,120]
[406713902,1772113802028,-500.0,0.00049589,120]
[406713903,1772113802068,-500.0,0.00049589,120]
[406713904,1772113802107,-500.0,0.00049589,120]
[406713905,1772113802144,-500.0,0.00049589,120]
[406713906,1772113802184,-1122.78,0.00049589,120]
[406713907,1772113802223,-500.0,0.00049589,120]
[406713908,1772113802264,-500.0,0.00049589,30]
[406713909,1772113802304,-539.03,0.00049589,120]
[406713910,1772113802343,-500.0,0.00049589,120]
[406713911,1772113802382,-3306.27,0.00049589,120]
[406713912,1772113802422,-500.0,0.00049589,120]
[406713913,1772113802461,-500.0,0.00049589,120]
[406713914,1772113802500,-500.0,0.00049589,120]
[406713915,1772113802541,-500.0,0.00049589,120]
[406713916,1772113802580,-500.0,0.00049589,120]
[406713917,1772113802619,-739.94,0.00049589,120]
[406713918,1772113802662,-5805.63,0.00049589,120]
[406713919,1772113802704,-511.12,0.00049589,120]
[406713920,1772113802743,-508.67,0.00049589,120]
[406713921,1772113802785,-8251.68,0.00049589,90]
[406713922,1772113802825,-500.0,0.00049589,120]
[406713923,1772113802864,-1448.34,0.00049589,120]
[406713924,1772113802902,-500.0,0.00049589,120]
[406713925,1772113802942,-500.0,0.00049589,120]
[406713926,1772113802982,-1452.22,0.00049589,120]
[406713927,1772113803022,-1175.91,0.00049589,120]
[406713928,1772113803062,-500.0,0.00049589,120]
[406713929,1772113803102,-3605.42,0.00049589,120]
[406713930,1772113803140,-500.0,0.00049589,120]
[406713931,1772113803180,-500.0,0.00049589,120]
[406713932,1772113803220,-500.0,0.00049589,120]
[406713933,1772113803261,-500.0,0.00049589,30]
[406713934,1772113803304,-500.0,0.00049589,120]
[406713935,1772113803347,-1797.93,0.00049589,120]
[406713936,1772113803390,-500.0,0.00049589,120]
[406713937,1772113803435,-500.0,0.00049589,120]
[406713938,1772113803480,-500.0,0.00049589,120]
[406713939,1772113803525,-500.0,0.00049589,120]
[406713940,1772113803570,-705.62,0.00049589,120]
[406713941,1772113803620,-500.0,0.00049589,120]
[406713942,1772113803664,-500.0,0.00049589,120]
[406713943,1772113803706,-500.0,0.00049589,120]
[406713944,1772113803748,-500.0,0.00049589,120]
[406713945,1772113803790,-500.0,0.00049589,120]
[406713946,1772113803832,-500.0,0.00049589,120]
[406713947,1772113803875,-620.21,0.00049589,120]
[406713948,1772113803916,-510.48,0.00049589,120]
[406713949,1772113803956,-500.0,0.00049589,120]
[406713950,1772113803997,-17450.28,0.00049589,120]
[406713951,1772113804038,-500.0,0.00049589,120]
[406713952,1772113804079,-500.0,0.00049589,120]
[406713953,1772113804118,-500.0,0.00049589,120]
[406713954,1772113804155,-500.0,0.00049589,120]
[406713955,1772113804193,-808.38,0.00049589,120]
[406713956,1772113804231,-2811.19,0.00049589,120]
[406713957,1772113804270,-500.0,0.00049589,120]
[406713958,1772113804308,-500.0,0.00049589,120]
[406713959,1772113804344,-500.0,0.00049589,120]
[406713960,1772113804382,-692.35,0.00049589,120]
[406713961,1772113804423,-6232.76,0.00049589,120]
[406713962,1772113804459,-1055.28,0.00049589,120]
[406713963,1772113804496,-1117.58,0.00049589,120]
[406713964,1772113804535,-500.0,0.00049589,120]
[406713965,1772113804572,-613.05,0.00049589,120]
[406713966,1772113804610,-1913.62,0.00049589,120]
[406713967,1772113804648,-806.06,0.00049589,120]
[406713968,1772113804687,-500.0,0.00049589,120]
[406713969,1772113804730,-500.0,0.00049589,120]
[406713970,1772113804772,-655.7,0.00049589,120]
[406713971,1772113804818,-500.0,0.00049589,120]
[406713972,1772113804867,-500.0,0.00049589,120]
[406713973,1772113804912,-1730.72,0.00049589,120]
[406713974,1772113804957,-500.0,0.00049589,120]
[406713975,1772113805002,-500.0,0.00049589,120]
[406713976,1772113805050,-1286.28,0.00049589,120]
[406713977,1772113805097,-500.0,0.00049589,120]
[406713978,1772113805144,-500.0,0.00049589,120]
[406713979,1772113805190,-1896.13,0.00049589,120]
[406713980,1772113805234,-1000.0,0.000496,30]
[406713981,1772113805276,-3044.19212449,0.000496,120]
[406713982,1772113805319,-305.0,0.0004975,30]
[406713983,1772113805362,-5000.0,0.00049759,30]
[406713984,1772113805404,-370.46,0.00049759,30]
[406713985,1772113805446,-1000.0,0.00049863,120]
[406713986,1772113805488,-3203.67,0.00049863,120]
[406713987,1772113805536,-500.0,0.00049863,120]
[406713988,1772113805587,-500.0,0.00049863,120]
[406713989,1772113805632,-500.0,0.00049863,120]
[406713990,1772113805679,-500.0,0.00049863,120]
[406713991,1772113805723,-250.06267877,0.00049863,120]
[406713992,1772113805768,-500.0,0.00049863,120]
[406713993,1772113805812,-500.0,0.00049863,120]
[406713994,1772113805854,-500.0,0.00049863,120]
[406713995,1772113805892,-500.0,0.00049863,120]
[406713996,1772113805930,-500.0,0.00049863,120]
[406713997,1772113805968,-500.0,0.00049863,120]
[406713998,1772113806006,-500.0,0.00049863,120]
[406713999,1772113806045,-500.0,0.00049863,60]
[406714000,1772113806280,-500.0,0.00049863,120]
[406714001,1772113806328,-237.88744211,0.00049863,120]
[406714002,1772113806370,-648.5736616,0.00049863,120]
[406714003,1772113806413,-500.0,0.00049863,120]
[406714004,1772113806457,-1000.23,0.00049863,120]
[406714005,1772113806501,-500.0,0.00049863,120]
[406714006,1772113806544,-500.0,0.00049863,120]
[406714007,1772113806590,-530.64,0.00049863,120]
[406714008,1772113806646,-500.0,0.00049863,120]
[406714009,1772113806687,-555.14,0.00049863,120]
[406714010,1772113806727,-500.0,0.00049863,120]
[406714011,1772113806767,-500.0,0.00049863,120]
[406714012,1772113806824,-500.0,0.00049863,120]
[406714013,1772113806868,-20845.25,0.00049863,120]
[406714014,1772113806909,-720.76,0.00049863,120]
[406714015,1772113806949,-1009.28,0.00049863,120]
[406714016,1772113806988,-5494.76,0.00049863,120]
[406714017,1772113807028,-500.0,0.00049863,120]
[406714018,1772113807068,-1839.02,0.00049863,120]
[406714019,1772113807107,-768.37,0.00049863,120]
[406714020,1772113807147,-893.54,0.00049863,120]
[406714021,1772113807187,-1861.88341992,0.00049863,120]
[406714022,1772113807230,-500.0,0.00049863,120]
[406714023,1772113807275,-911.29,0.00049863,120]
[406714024,1772113807324,-582.93703334,0.00049863,120]
[406714025,1772113807368,-500.0,0.00049863,120]
[406714026,1772113807415,-500.0,0.00049863,120]
[406714027,1772113807459,-516.77,0.00049863,120]
[406714028,1772113807502,-1374.44,0.00049863,120]
[406714029,1772113807545,-1983.34,0.00049863,120]
[406714030,1772113807589,-500.0,0.00049863,120]
[406714031,1772113807633,-153.23803274,0.00049863,120]
[406714032,1772113807675,-1318.28,0.00049863,120]
[406714033,1772113807718,-1099.66,0.00049863,120]
[406714034,1772113807763,-500.0,0.00049863,120]
[406714035,1772113807805,-500.0,0.00049863,120]
[406714036,1772113807846,-2624.84,0.00049863,120]
[406714037,1772113807892,-573.55071848,0.00049863,120]
[406714038,1772113807933,-500.0,0.00049863,120]
[406714039,1772113807975,-500.0,0.00049863,120]
[406714040,1772113808019,-1204.15,0.00049863,120]
[406714041,1772113808061,-500.0,0.00049863,120]
[406714042,1772113808105,-903.2,0.00049863,120]
[406714043,1772113808148,-3187.62,0.00049863,120]
[406714044,1772113808191,-500.0,0.00049863,120]
[406714045,1772113808234,-500.0,0.00049863,120]
[406714046,1772113808278,-2798.47,0.00049863,120]
[406714047,1772113808323,-500.0,0.00049863,120]
[406714048,1772113808369,-500.0,0.00049863,120]
[406714049,1772113808418,-1299.09,0.00049863,120]
[406714050,1772113808464,-500.0,0.00049863,120]
[406714051,1772113808509,-3273.8,0.00049863,120]
[406714052,1772113808554,-1624.63,0.00049863,120]
[406714053,1772113808598,-500.0,0.00049863,120]
[406714054,1772113808641,-3397.83,0.00049863,120]
[406714055,1772113808690,-694.59,0.00049863,120]
[406714056,1772113808736,-2605.97,0.00049863,120]
[406714057,1772113808784,-500.0,0.00049863,120]
[406714058,1772113808829,-500.0,0.00049863,120]
[406714059,1772113808874,-500.0,0.00049863,120]
[406714060,1772113808919,-500.0,0.00049863,120]
[406714061,1772113808965,-500.0,0.00049863,120]
[406714062,1772113809011,-500.0,0.00049863,120]
[406714063,1772113809060,-500.0,0.00049863,120]
[406714064,1772113809105,-500.0,0.00049863,120]
[406714065,1772113809149,-500.0,0.00049863,120]
[406714066,1772113809191,-801.81,0.00049863,120]
[406714067,1772113809235,-533.71331077,0.00049863,120]
[406714068,1772113809277,-500.0,0.00049863,120]
[406714069,1772113809319,-500.0,0.00049863,120]
[406714070,1772113809359,-500.0,0.00049863,120]
[406714071,1772113809398,-297.74,0.00049863,30]
[406714072,1772113809436,-1610.75,0.00049863,120]
[406714073,1772113809475,-2888.95,0.00049863,120]
[406714074,1772113809514,-649.57,0.00049863,120]
[406714075,1772113809556,-353.90577886,0.00049863,120]
[406714076,1772113809596,-621.19,0.00049863,120]
[406714077,1772113809636,-500.0,0.00049863,120]
[406714078,1772113809675,-500.0,0.00049863,120]
[406714079,1772113809713,-500.0,0.00049863,120]
[406714080,1772113809755,-1265.47,0.00049863,120]
[406714081,1772113809798,-1039.77,0.00049863,120]